[Event "4th Tata Steel India Rapid Open 2022"]
[Site "Kolkota"]
[Date "2022.11.30"]
[Round "4.5"]
[White "Abdusattorov, Nodirbek"]
[Black "Vidit, Santosh Gujrathi"]
[Result "0-1"]
[ECO "D35"]
[WhiteElo "2713"]
[BlackElo "2724"]
[Annotator "TA"]
[PlyCount "150"]
[EventDate "2022.11.29"]
[EventType "tourn"]
[EventCountry "IND"]
[SourceTitle "playchess.com"]
[Source "ChessBase"]
[SourceQuality "1"]
[TimeControl "900+10"]

{[%evp 13,150,25,32,26,45,39,48,48,52,41,59,35,47,45,48,49,46,42,52,34,40,34,41,32,47,33,98,92,97,97,92,76,93,92,131,95,63,60,98,99,101,108,133,133,133,133,133,127,130,127,158,155,147,157,158,150,141,145,125,145,182,222,244,139,144,0,0,0,0,0,0,0,0,0,0,0,0,0,0,-8,-8,-8,-8,-84,-84,-84,-84,-84,-84,-150,-8,-8,0,0,0,-1838,-1815,-1188,-742,-1141,-450,-366,0,-1311,-727,-1256,-1250,-588,-768,-572,-588,-29974,-10037,-29967,-29976,-29976,-29977,-29977,-29978,-29978,-29979,-29979,-29975,-29979,-29980,-29980,-29979,-29979,-29980,-29978,-29977,-29977,-29978,-29980,-29981,-29990,-29991,-29991,-29988]} 1. c4 {[%emt 0:00:03]} e6 {[%emt 0:00:04]} 2. Nc3 {[%emt 0:00:02]} d5 {[%emt 0:00:03]} 3. d4 {[%emt 0:00:03]} Nf6 {[%emt 0:00:05]} 4. cxd5 {[%emt 0:00:03]} exd5 {[%emt 0:00:03]} 5. Bg5 {[%emt 0:00:02]} c6 {[%emt 0:00:03]} 6. e3 {[%emt 0:00:04]} h6 {[%emt 0:00:04]} 7. Bh4 {[%emt 0:00:03]} Bf5 {[%emt 0:00:04]} 8. Qf3 {[%emt 0:01:13] D35: Queen's Gambit Declined: Exchange Variation.} Be6 {[%emt 0:00:04] 8...Bh7 is the recent fashion.} 9. Bxf6 {[%emt 0:00:08]} Qxf6 {[%emt 0:00:01]} 10. Qxf6 {[%emt 0:00:02] White is slightly better.} gxf6 {[%emt 0:00:02]} 11. Bd3 {[%emt 0:00:10]} a5 {[%emt 0:00:03]} 12. Nf3 {[%emt 0:00:04][%cal Bg1f3,Bf3e1,Be1d3][%mdl 32]} a4 {[%emt 0:00:17] [#]} 13. Rc1 $5 $146 {[%emt 0:02:16][%mdl 8] New and interesting.} ({Predecessor:} 13. a3 Nd7 14. Nh4 b5 15. Na2 Nb6 16. Nb4 Kd7 17. f4 Bxb4+ 18. axb4 Kd6 19. Kf2 {½-½ (63) Navara,D (2697)-Bluebaum,M (2672) Tornelo INT 2020}) 13... a3 {[%emt 0:02:07]} 14. b3 {[%emt 0:00:01]} Na6 {[%emt 0:00:03]} 15. Bxa6 {[%emt 0:00:56]} Rxa6 {[%emt 0:00:02]} 16. Ke2 {[%emt 0:00:05]} Rg8 {[%emt 0:00:36]} 17. Ne1 {[%emt 0:00:56]} Kd7 {[%emt 0:03:10]} 18. g3 {[%emt 0:00:16]} h5 {[%emt 0:00:53]} 19. Nd3 {[%emt 0:00:14]} b6 {[%emt 0:00:39]} (19... h4 $14) 20. h4 {[%emt 0:00:23]} Bd6 {[%emt 0:00:40]} 21. b4 {[%emt 0:00:09]} Raa8 {[%emt 0:01:03]} 22. Rb1 {[%emt 0:00:25]} Rgc8 {[%emt 0:01:18]} 23. Rhc1 {[%emt 0:00:36]} Bf5 {[%emt 0:03:56]} 24. Rb3 {[%emt 0:00:43]} Ke6 {[%emt 0:00:53]} 25. Kd2 {[%emt 0:01:01]} Bg6 {[%emt 0:02:38]} 26. Ne2 {[%emt 0:00:21]} Kd7 {[%emt 0:00:15]} 27. Nef4 {[%emt 0:00:07]} Bxd3 {[%emt 0:00:13]} 28. Nxd3 {[%emt 0:00:03]} Ra4 {[%emt 0:00:05]} 29. Rcc3 {[%emt 0:00:41]} Rca8 {[%emt 0:00:11]} 30. Kc2 {[%emt 0:00:42]} ({Much less strong is} 30. b5 Rc8 $16) 30... R8a7 {[%emt 0:00:00]} 31. Rb1 {[%emt 0:00:01]} Rc7 {[%emt 0:00:23]} 32. Kb3 {[%emt 0:00:08]} Ra8 {[%emt 0:00:04]} 33. Rbc1 {[%emt 0:00:02]} Rcc8 {[%emt 0:00:23]} 34. b5 {[%emt 0:01:42][%cal Rc3c6]} Ra5 {[%emt 0:00:01]} (34... cxb5 $2 35. Rxc8 Rxc8 36. Rxc8 Kxc8 37. Nb4 $18) 35. bxc6+ {[%emt 0:00:12]} Kc7 {[%emt 0:00:01]} 36. Kc2 {[%emt 0:00:17]} b5 {[%emt 0:00:20]} 37. Rb1 {[%emt 0:00:11]} Kb6 {[%emt 0:00:05]} 38. Kb3 {[%emt 0:00:27]} (38. Nb4 $18) 38... Ra4 $16 {[%emt 0:00:20][%cal Oa4c4]} 39. Nf4 {[%emt 0:02:57]} (39. Nc5 $16 Rc4 40. Nd7+ Kxc6 41. Nxf6) 39... Bxf4 $11 {[%emt 0:00:14]} 40. gxf4 {[%emt 0:00:01] Rc5 is the strong threat.} Rc4 {[%emt 0:00:10] Prevents Rc5.} 41. Rxc4 {[%emt 0:01:03]} dxc4+ {[%emt 0:00:01][%mdl 4096] Endgame KR-KR} 42. Kb4 {[%emt 0:00:36] Black must now prevent d5.} Kxc6 {[%emt 0:00:07]} 43. e4 {[%emt 0:00:01]} f5 {[%emt 0:00:21]} 44. f3 {[%emt 0:00:08]} fxe4 {[%emt 0:00:10]} 45. fxe4 {[%emt 0:00:05]} Re8 {[%emt 0:00:08]} 46. d5+ {[%emt 0:00:02]} Kd6 {[%emt 0:00:02]} 47. Re1 {[%emt 0:00:40]} f5 {[%emt 0:00:01]} 48. e5+ {[%emt 0:00:00]} (48. Kxb5 $11 {keeps the balance.} c3 49. Kb4) 48... Kxd5 $17 {[%emt 0:00:02]} 49. Kxa3 {[%emt 0:00:10]} Kc5 {[%emt 0:00:17]} 50. Kb2 {[%emt 0:00:30]} b4 {[%emt 0:00:03]} 51. a3 {[%emt 0:00:06] [#]} ({White should try} 51. e6) 51... bxa3+ {[%emt 0:00:25]} ({Better is} 51... b3 $1 $17 {Strongly threatening ...Rg8.} 52. Re2 Kd4) 52. Kxa3 $11 {[%emt 0:00:01]} Rb8 {[%emt 0:00:21]} 53. e6 {[%emt 0:00:07]} c3 {[%emt 0:00:06][%cal Bc4c3,Bc3c2][%mdl 32]} 54. Re2 $2 {[%emt 0:00:58][%mdl 8192]} (54. e7 $11 c2 55. Rc1) 54... Kc4 $19 {[%emt 0:00:08][%cal Rb8a8]} 55. Ka2 {[%emt 0:00:23] [#]} Kd3 $1 {[%emt 0:00:03]} 56. Re5 {[%emt 0:00:10]} Ra8+ {[%emt 0:00:22]} (56... Rb2+ $142 57. Ka3 Rb1) 57. Kb3 {[%emt 0:00:06]} (57. Kb1 c2+ 58. Kb2 Rb8+) 57... Rb8+ $2 {[%emt 0:00:01]} (57... Rc8 58. Rd5+ (58. Rxf5 {gets mated.} c2 59. Rd5+ Ke2) 58... Ke4 59. Re5+ Kxf4) 58. Ka2 $1 {[%emt 0:00:19]} c2 {[%emt 0:00:05]} 59. Rc5 {[%emt 0:00:01] Inhibits c1Q.} Re8 {[%emt 0:00:25]} 60. Kb2 {[%emt 0:00:56]} Rxe6 {[%emt 0:00:01] ( -> ...Rb6+)} 61. Rc3+ {[%emt 0:00:01]} Ke4 {[%emt 0:00:02]} 62. Rg3 {[%emt 0:00:01]} Kxf4 {[%emt 0:00:14]} (62... Rc6 $142 63. Kc1 Kxf4 64. Rg5 Ke4 65. Rxh5 f4 66. Rh7 f3 67. Re7+ Kf5 68. Re1 Kf4 69. Rf1 Kg3 70. Rg1+ Kh3 71. Kd2 c1=Q+ 72. Rxc1 Rxc1 73. Kxc1 f2 74. Kd2 f1=Q 75. Kc3 Kxh4 76. Kb4 Qf5 77. Kb3 Kg3 78. Kc4 Kf3 79. Kc3 Ke4 80. Kc4 Qa5 81. Kb3 Kd3 82. Kb2 Qb5+ 83. Ka2 Kc3 84. Ka3 Qb3#) 63. Rg5 {[%emt 0:00:01]} Rc6 {[%emt 0:00:10] Black mates.} 64. Kc1 {[%emt 0:00:01]} Ke4 {[%emt 0:00:18]} 65. Rxh5 {[%emt 0:00:02]} f4 {[%emt 0:00:01][%cal Bf5f4,Bf4f3,Bf3f2][%mdl 32]} 66. Rh8 {[%emt 0:00:11]} f3 {[%emt 0:00:02]} 67. Rf8 {[%emt 0:01:13]} Ke3 {[%emt 0:00:20]} 68. h5 {[%emt 0:00:06]} f2 {[%emt 0:00:01]} 69. Re8+ {[%emt 0:00:02]} Kf3 {[%emt 0:00:04]} 70. Rf8+ {[%emt 0:00:05]} Ke2 {[%emt 0:00:09]} 71. Re8+ {[%emt 0:00:01]} Kf1 {[%emt 0:00:02]} 72. Rf8 {[%emt 0:00:26]} Rh6 {[%emt 0:00:12]} 73. Rf5 {[%emt 0:00:03]} Ke2 {[%emt 0:00:34]} 74. Re5+ {[%emt 0:00:02]} Kd3 {[%emt 0:00:07]} 75. Rf5 {[%emt 0:00:12] [#]} Rxh5 $3 {[%emt 0:00:05][%mdl 512] Never resign too early!   Weighted Error Value: White=0.29 (precise) /Black=0.41} 0-1

[Event "4th Tata Steel India Rapid Open 2022"]
[Site "Kolkota"]
[Date "2022.11.30"]
[Round "5.1"]
[White "Gukesh D"]
[Black "Abdusattorov, Nodirbek"]
[Result "1-0"]
[ECO "A34"]
[WhiteElo "2725"]
[BlackElo "2713"]
[Annotator "TA"]
[PlyCount "111"]
[EventDate "2022.11.29"]
[EventType "tourn"]
[EventCountry "IND"]
[SourceTitle "playchess.com"]
[Source "ChessBase"]
[SourceQuality "1"]
[TimeControl "900+10"]

{[%evp 15,111,0,7,0,41,37,40,60,47,38,59,43,58,46,48,67,109,127,121,114,154,160,148,152,180,185,178,187,177,183,189,107,115,111,103,109,107,105,110,103,100,97,145,142,153,107,110,104,116,111,129,129,129,129,170,162,172,162,168,155,195,194,191,170,185,196,189,185,467,468,401,453,525,510,448,382,360,199,641,634,618,586,541,545,4133,4133,4133,4116,4116,4116,29962,29965,29963,29968,29967,29969,5652,5369]} 1. Nf3 {[%emt 0:00:06]} Nf6 {[%emt 0:00:05]} 2. g3 {[%emt 0:00:05]} c5 {[%emt 0:00:21]} 3. Bg2 {[%emt 0:00:02]} Nc6 {[%emt 0:00:01]} 4. c4 {[%emt 0:00:26]} d5 {[%emt 0:00:02]} 5. cxd5 {[%emt 0:00:05]} Nxd5 {[%emt 0:00:02]} 6. O-O {[%emt 0:00:40]} e5 {[%emt 0:00:02]} 7. Nc3 {[%emt 0:00:06]} Nc7 {[%emt 0:00:13]} 8. a3 {[%emt 0:00:24]} f6 {[%emt 0:02:40]} 9. e3 {[%emt 0:00:37][%cal Od2d4] A34: Symmetrical English: 2 Nc3, lines with ...d5.} Be7 {[%emt 0:00:06]} 10. d4 {[%emt 0:00:04]} cxd4 {[%emt 0:00:25]} 11. exd4 {[%emt 0:00:03] White is slightly better.} exd4 {[%emt 0:00:03]} 12. Ne2 {[%emt 0:00:10][%cal Re2d4,Bc3e2,Be2c1,Bc1d3,Bd3f4][%mdl 32]} Ne6 {[%emt 0:00:14]} 13. b4 {[%emt 0:00:03]} O-O {[%emt 0:00:40]} 14. Bb2 {[%emt 0:01:15][%cal Re2d4]} d3 {[%emt 0:02:07]} 15. Nc1 {[%emt 0:00:09] [#]} Nc7 $146 {[%emt 0:01:52]} ({Predecessor:} 15... a5 16. b5 Qb6 17. Qxd3 Ncd8 18. a4 Nf7 19. Nb3 Rd8 20. Qe2 Bb4 21. Rfd1 Bd7 {1-0 (37) Banikas,H (2609)-Popilski,G (2506) Rethymno 2013}) 16. Nxd3 {[%emt 0:00:11]} Bf5 {[%emt 0:00:07]} 17. Qb3+ {[%emt 0:02:51]} Kh8 {[%emt 0:02:12]} 18. Nf4 {[%emt 0:00:33]} Qe8 {[%emt 0:00:47]} 19. b5 {[%emt 0:01:18] White is more active.} Nd8 {[%emt 0:01:02]} 20. Nh4 {[%emt 0:04:27]} Be6 {[%emt 0:01:49]} 21. Nxe6 {[%emt 0:00:47]} Ndxe6 {[%emt 0:00:01]} 22. Rfe1 {[%emt 0:00:09]} (22. Bxb7 Rb8 23. Bg2 Qxb5 24. Qxb5 Rxb5 $11) 22... Qf7 {[%emt 0:00:32]} 23. Rxe6 {[%emt 0:01:53]} Qxe6 $16 {[%emt 0:00:13]} 24. Qxe6 {[%emt 0:00:02]} Nxe6 {[%emt 0:00:02]} 25. Re1 {[%emt 0:00:02]} (25. Bxb7 Rab8 26. Bc6 Bc5 $17) 25... Bc5 {[%emt 0:00:13] And now ...Rae8 would win.} 26. Rxe6 {[%emt 0:00:04]} Rae8 {[%emt 0:00:12]} 27. Rxe8 {[%emt 0:00:57]} Rxe8 {[%emt 0:00:01]} 28. Kf1 $1 {[%emt 0:00:03] Prevents Re2.} (28. Bxb7 Re2 29. Bc3 Rxf2 $14) 28... Rd8 {[%emt 0:00:08]} ({Black should play} 28... b6) 29. Ke2 $1 {[%emt 0:00:30]} (29. Bxb7 $6 Rd2 30. Bc3 Rxf2+ 31. Ke1 Rc2 $14) 29... Re8+ {[%emt 0:00:01]} 30. Kd3 {[%emt 0:00:21]} (30. Kd2 $142) 30... b6 {[%emt 0:00:00]} 31. Be4 {[%emt 0:01:12]} Bxf2 {[%emt 0:00:10]} 32. Nf3 {[%emt 0:00:07]} Kg8 {[%emt 0:01:24]} 33. g4 {[%emt 0:00:12]} Kf7 {[%emt 0:00:13]} 34. a4 {[%emt 0:00:08]} (34. Bxh7 $2 Re3+ 35. Kc4 Rxf3 $19) 34... g6 {[%emt 0:00:03]} 35. Bd5+ {[%emt 0:00:29]} Ke7 {[%emt 0:00:04]} 36. Nd4 {[%emt 0:00:19]} Kd6 {[%emt 0:00:02] [#]} 37. Be4 {[%emt 0:00:04]} Ke5 {[%emt 0:01:21] aiming for ...Rd8.} 38. Ne2+ {[%emt 0:00:16]} Ke6 {[%emt 0:00:02]} 39. Nf4+ {[%emt 0:00:02]} Kf7 {[%emt 0:00:01]} 40. Bd5+ {[%emt 0:00:07]} Ke7 {[%emt 0:00:29] [#]} 41. Ba3+ $1 {[%emt 0:00:12] A strong pair of Bishops.} Bc5 $2 {[%emt 0:00:02]} (41... Kd8) 42. Bxc5+ $18 {[%emt 0:00:19]} bxc5 {[%emt 0:00:01]} 43. Bc6 {[%emt 0:00:09]} Rf8 {[%emt 0:00:10]} 44. a5 {[%emt 0:00:14]} Kd6 {[%emt 0:00:01]} 45. Kc4 {[%emt 0:00:09]} f5 {[%emt 0:00:15]} 46. g5 {[%emt 0:00:01]} (46. Nd3 $142) 46... Ke5 $2 {[%emt 0:00:00]} (46... h6) 47. Nd3+ {[%emt 0:00:06]} Kd6 {[%emt 0:00:01]} 48. Nxc5 {[%emt 0:00:07]} f4 {[%emt 0:00:05]} 49. Ne4+ {[%emt 0:00:04]} Ke5 {[%emt 0:00:02]} 50. b6 {[%emt 0:00:31]} axb6 {[%emt 0:00:03]} 51. a6 {[%emt 0:00:02]} Rf7 {[%emt 0:02:37]} 52. Bb7 {[%emt 0:00:09]} b5+ {[%emt 0:00:06]} 53. Kb4 {[%emt 0:00:22]} f3 {[%emt 0:00:23]} 54. a7 {[%emt 0:00:05]} ({Not} 54. Kxb5 f2 55. Nxf2 Rxf2 $16) 54... Rf8 {[%emt 0:00:01]} 55. a8=Q {[%emt 0:00:14]} ({Stronger than} 55. a8=B f2 56. Nxf2 (56. Kxb5 f1=Q+ 57. Kc5 Qc1+ 58. Kb4 Qb2+ 59. Kc5 Qd4+ 60. Kc6 Qxe4+ 61. Kb5 Qd3+ 62. Kb6 Qd4+ 63. Kb5 Rf2 64. Bd5 Rb2+ 65. Kc6 Qxd5+ 66. Kc7 Qd6+ 67. Kc8 Rb8#) 56... Rxf2 $11) 55... Rxa8 {[%emt 0:00:03]} 56. Bxa8 {[%emt 0:00:01] Weighted Error Value: White=0.09 (flawless) /Black=0.48} 1-0

[Event "4th Tata Steel India Rapid Open 2022"]
[Site "Kolkota"]
[Date "2022.11.30"]
[Round "5.2"]
[White "Sethuraman, S.P."]
[Black "Nihal Sarin"]
[Result "0-1"]
[ECO "C17"]
[WhiteElo "2643"]
[BlackElo "2670"]
[Annotator "TA"]
[PlyCount "114"]
[EventDate "2022.11.29"]
[EventType "tourn"]
[EventCountry "IND"]
[SourceTitle "playchess.com"]
[Source "ChessBase"]
[SourceQuality "1"]
[TimeControl "900+10"]

{[%evp 16,114,-6,-1,-1,-15,0,0,16,0,0,0,18,29,17,5,21,14,29,29,28,-10,-4,-12,-7,-130,-133,-161,-157,-145,-125,-135,-138,-134,-134,-135,-136,-135,-135,-142,-143,-138,-138,-288,-262,-270,-254,-270,-270,-297,-289,-629,-525,-704,-665,-642,-614,-688,-363,-1693,-1575,-1037,-379,-379,-379,-639,-357,-357,-356,-779,-342,-342,-314,-454,-454,-425,-385,-1636,-1568,-1880,-1897,-1566,-1567,-1564,-1358,-1157,-1159,-2376,-12202,-12837,-1597,-29972,-12833,-29977,-29978,-29984,-29984,-29986,-29987,-29987,-29987]} 1. e4 {[%emt 0:00:05]} e6 {[%emt 0:00:01]} 2. d4 {[%emt 0:00:09]} d5 {[%emt 0:00:01]} 3. Nc3 {[%emt 0:00:17]} Bb4 {[%emt 0:00:03]} 4. e5 {[%emt 0:00:45]} c5 {[%emt 0:00:02]} 5. Bd2 {[%emt 0:00:19]} Ne7 {[%emt 0:00:12][%cal Bg8e7,Be7g6,Bg6f4,Bf4d3][%mdl 32]} 6. a3 {[%emt 0:00:16]} Bxc3 {[%emt 0:00:02]} 7. Bxc3 {[%emt 0:00:04]} b6 {[%emt 0:00:38]} 8. Bb5+ {[%emt 0:00:22]} Bd7 {[%emt 0:00:01]} 9. Bd3 {[%emt 0:00:15]} Nbc6 {[%emt 0:00:02] C17: French: 3 Nc3 Bb4 4 e5 c5 sidelines.} 10. Nf3 {[%emt 0:03:01]} Ng6 {[%emt 0:02:37]} 11. O-O {[%emt 0:04:44] [#]} Nf4 $5 $146 {[%emt 0:00:01][%mdl 8] The position is equal. An interesting novelty.} ({Predecessor:} 11... O-O 12. Re1 Qc7 13. Qd2 a5 14. Qe3 Nce7 15. g3 Nf5 16. Qd2 Rfc8 17. Rab1 cxd4 18. Nxd4 Nxe5 19. Rxe5 Qxe5 20. Nxf5 Rxc3 21. Qxc3 Qxc3 22. bxc3 exf5 23. Rxb6 {½-½ (63) Mastrovasilis,D (2621)-Shirov,A (2705) Porto Carras 2011}) 12. Re1 {[%emt 0:01:05]} (12. dxc5 {is interesting.} bxc5 13. b4 Qb6 14. Qd2) 12... Nxd3 {[%emt 0:00:03]} 13. Qxd3 {[%emt 0:00:09]} Rc8 {[%emt 0:00:31]} 14. dxc5 {[%emt 0:00:26]} bxc5 {[%emt 0:00:01]} 15. b4 {[%emt 0:00:02]} Qb6 {[%emt 0:01:04]} 16. Rab1 {[%emt 0:00:45]} h6 {[%emt 0:00:29]} 17. Bd2 {[%emt 0:01:17]} O-O {[%emt 0:01:38]} 18. bxc5 {[%emt 0:02:17]} (18. c3 {simplifies} Ne7 19. Be3 d4 20. bxc5 Qxc5 21. Qxd4 Qxd4 22. cxd4 Bc6 23. Nd2) 18... Qxc5 {[%emt 0:00:13]} 19. Be3 {[%emt 0:00:31]} (19. Rb7 {seems wilder.} Rfd8 20. Reb1 Qf8 21. h3) 19... Qa5 {[%emt 0:00:30]} 20. Rb7 {[%emt 0:00:04] [#]} (20. h3 $11) 20... Nxe5 $1 $17 {[%emt 0:00:05][%mdl 512]} 21. Qd1 {[%emt 0:00:28]} (21. Qe2 Nxf3+) 21... Nxf3+ {[%emt 0:01:20]} 22. gxf3 {[%emt 0:00:02]} d4 {[%emt 0:03:08]} 23. Rxd7 {[%emt 0:00:08]} dxe3 {[%emt 0:00:01]} 24. Rxe3 {[%emt 0:00:06]} Rc4 {[%emt 0:01:02]} 25. Rd4 {[%emt 0:00:44]} Rxd4 {[%emt 0:00:18] Black is more active.} 26. Qxd4 {[%emt 0:00:02][%mdl 4096] Endgame KQR-KQR} Rd8 {[%emt 0:00:01]} 27. Qe5 {[%emt 0:00:50]} Rd1+ {[%emt 0:02:02]} 28. Kg2 {[%emt 0:00:01]} Qa6 {[%emt 0:00:02] Hoping for ...Qf1+.} 29. Rd3 {[%emt 0:00:29] This move loses the game for White.} (29. Re1 $17 Rxe1 30. Qxe1) 29... Rxd3 $19 {[%emt 0:00:07]} 30. cxd3 {[%emt 0:00:01]} Qxa3 {[%emt 0:00:03] KQ-KQ} 31. Qb8+ {[%emt 0:00:02]} Kh7 {[%emt 0:00:01]} 32. Qb7 {[%emt 0:00:02]} a5 {[%emt 0:00:16]} ({Weaker is} 32... Qxd3 33. Qxa7 Qf5 34. Qd4 $17) 33. d4 {[%emt 0:00:29]} (33. Qxf7 Qxd3 34. Qa7) 33... Qd3 {[%emt 0:00:30] Strongly threatening ...a4.} 34. Qa7 {[%emt 0:00:15] Prevents a4.} Qg6+ {[%emt 0:00:02]} 35. Kf1 {[%emt 0:00:02]} Qf5 {[%emt 0:00:11]} 36. Kg2 {[%emt 0:00:01]} Qg5+ {[%emt 0:00:17]} 37. Kf1 $2 {[%emt 0:00:04]} (37. Kh3) 37... Qb5+ {[%emt 0:00:15]} 38. Kg2 {[%emt 0:00:03]} Kg6 $2 {[%emt 0:00:08]} (38... a4 39. Qa8 Qb3 40. Qe4+ g6) 39. h4 {[%emt 0:00:11]} a4 {[%emt 0:00:37]} 40. Qa8 $2 {[%emt 0:00:04]} (40. h5+ Kf6 41. d5 Qxd5 42. Qxa4) 40... h5 {[%emt 0:00:30]} 41. Qe4+ {[%emt 0:00:45]} Kf6 {[%emt 0:00:40] Threatens to win with ...a3.} 42. Qa8 $2 {[%emt 0:00:09] Inhibits a3.} (42. Qe1) 42... Qd7 {[%emt 0:00:22]} (42... g6 $142 {And now ...Kg7 would win.} 43. d5 exd5 44. Qh8+ Ke6) 43. Qa5 {[%emt 0:00:06][%csl Gh4][%cal Ra5g5]} g6 {[%emt 0:00:32]} (43... Qxd4 $2 44. Qg5#) 44. Qe5+ {[%emt 0:00:01]} (44. Qc3 {only move.}) 44... Ke7 {[%emt 0:00:01] ...Qd5 is the strong threat.} 45. Qc5+ {[%emt 0:00:01]} Ke8 {[%emt 0:00:04]} 46. Qb6 $2 {[%emt 0:00:30]} (46. Qc3) 46... Kf8 {[%emt 0:00:10]} 47. Qb8+ {[%emt 0:00:17]} Kg7 {[%emt 0:00:04]} 48. Qe5+ {[%emt 0:00:03]} Kg8 {[%emt 0:00:09] aiming for ...Qa7.} 49. Qb8+ {[%emt 0:00:01] [#]} Kh7 $1 {[%emt 0:00:06]} 50. Qb6 {[%emt 0:00:09]} Kg7 {[%emt 0:00:05] White must now prevent ...Qd5.} 51. Qc5 {[%emt 0:00:03]} Qd5 {[%emt 0:00:08]} 52. Qa7 {[%emt 0:00:01]} Qc4 {[%emt 0:00:41]} (52... Qb3 $142 53. d5 exd5 54. Qd4+ Kg8) 53. Kg3 {[%emt 0:00:19]} Qb4 {[%emt 0:00:03]} (53... Qb3 $142 54. d5 exd5 55. Qd4+ Kg8 56. Kg2 a3 57. Kh2 a2 58. Qe5 Qd1 59. Qe8+ Kg7 60. Qe5+ Kh7 61. Qf6 a1=Q 62. Qxa1 Qxa1 63. f4 d4 64. f5 d3 65. fxg6+ fxg6 66. f4 d2 67. f5 d1=Q 68. fxg6+ Kxg6 69. Kh3 Qg4+ 70. Kh2 Qag1#) 54. Kg2 {[%emt 0:00:28]} a3 {[%emt 0:00:11][%cal Ba4a3,Ba3a2][%mdl 32] Black mates.} 55. Kg3 {[%emt 0:00:01]} Qb2 {[%emt 0:00:17]} 56. Qa5 {[%emt 0:00:13]} a2 {[%emt 0:00:02]} ({And not} 56... Qxd4 57. Qxa3 Qf6 58. Qa5 $17) 57. Qe5+ {[%emt 0:00:02]} Kg8 {[%emt 0:00:02] Weighted Error Value: White=1.07/Black=0.43} 0-1

[Event "4th Tata Steel India Rapid Open 2022"]
[Site "Kolkota"]
[Date "2022.11.30"]
[Round "5.3"]
[White "So, Wesley"]
[Black "Erigaisi Arjun"]
[Result "1/2-1/2"]
[ECO "C11"]
[WhiteElo "2760"]
[BlackElo "2718"]
[Annotator "TA"]
[PlyCount "97"]
[EventDate "2022.11.29"]
[EventType "tourn"]
[EventCountry "IND"]
[SourceTitle "playchess.com"]
[Source "ChessBase"]
[SourceQuality "1"]
[TimeControl "900+10"]

{[%evp 17,97,0,0,0,15,0,0,0,0,0,0,0,0,0,0,0,0,14,0,-21,0,0,0,4,25,29,35,13,8,9,11,9,9,-2,0,-35,-36,-29,-27,-74,-72,-78,-16,-14,-11,-39,-33,-47,-25,-78,-88,-110,-3,-4,-3,-3,-3,-3,0,0,0,-8,0,0,0,0,0,0,0,0,0,0,0,0,0,0,0,0,0,0,0,0]} 1. e4 {[%emt 0:00:02]} e6 {[%emt 0:00:02]} 2. d4 {[%emt 0:00:02]} d5 {[%emt 0:00:02]} 3. Nc3 {[%emt 0:00:05]} Nf6 {[%emt 0:00:02]} 4. e5 {[%emt 0:00:08]} Nfd7 {[%emt 0:00:03]} 5. f4 {[%emt 0:00:02]} c5 {[%emt 0:00:02]} 6. Nf3 {[%emt 0:00:02]} Nc6 {[%emt 0:00:02]} 7. Be3 {[%emt 0:00:02]} cxd4 {[%emt 0:00:04]} 8. Nxd4 {[%emt 0:00:01]} Qb6 {[%emt 0:00:02]} 9. a3 {[%emt 0:00:05]} Bc5 {[%emt 0:00:38][%cal Rc6d4]} (9... Qxb2 $2 10. Na4 $18) 10. Ncb5 $1 {[%emt 0:00:03][%mdl 4] is recently more successful than 10.Na4. C11: French: Classical System: 4 e5 and 4 Bg5 dxe4.} (10. Na4 $5 Qa5+ $8 11. Nc3 $11) 10... a6 {[%emt 0:00:13] Against b4} 11. b4 {[%emt 0:00:03]} (11. Nxc6 {simplifies} axb5 12. Bxc5 Nxc5 13. Nd4) 11... axb5 {[%emt 0:00:28]} 12. bxc5 {[%emt 0:00:02]} Qxc5 {[%emt 0:00:03]} ({Resist} 12... Nxc5 13. Nb3 d4 14. Nxd4 $14 (14. Bxd4 Nxd4 15. Qxd4 Nd7 $14)) 13. Qd3 {[%emt 0:07:22][%cal Od4e6] [#] aiming for Nxe6!} Qe7 {[%emt 0:00:29]} 14. Nxb5 {[%emt 0:00:24] Strongly threatening Nc7+.} O-O $1 {[%emt 0:00:03] [#]} 15. Be2 $146 {[%emt 0:00:15]} ({Predecessor:} 15. Qc3 f6 16. exf6 Qxf6 17. Qxf6 Nxf6 18. Be2 e5 19. fxe5 Nxe5 20. Bc5 Rf7 21. O-O-O {½-½ (33) Pichot,A (2629)-Fridman,D (2663) Dubai 2021}) 15... f6 {[%emt 0:00:27]} 16. exf6 {[%emt 0:00:08]} Nxf6 {[%emt 0:00:03]} 17. O-O {[%emt 0:00:14]} Bd7 {[%emt 0:00:03]} 18. Nd4 {[%emt 0:02:04]} Na5 {[%emt 0:00:41]} (18... Rfe8 $5 {[%cal Re6e5]}) 19. Bd2 {[%emt 0:00:22]} Rfc8 {[%emt 0:00:49]} 20. Bb4 {[%emt 0:00:12] This pair of bishops is nice.} Qe8 {[%emt 0:02:16]} 21. Rae1 {[%emt 0:00:26]} Nc6 {[%emt 0:01:15]} 22. Bf3 {[%emt 0:02:01]} (22. Qe3 $5 {[%cal Rd4c6]}) 22... Nxb4 {[%emt 0:02:26]} (22... Nxd4 {feels hotter.} 23. Qxd4 Rc4 24. Qd2 Bb5) 23. axb4 {[%emt 0:00:01]} Qe7 {[%emt 0:00:02]} (23... Qf8 {looks sharper.} 24. Nxe6 Qxb4 25. Bxd5 Qb6+) 24. Qd2 {[%emt 0:00:10]} Qd6 {[%emt 0:00:35]} 25. g3 {[%emt 0:00:38]} Ra3 {[%emt 0:00:46] Inhibits c3.} 26. Re3 {[%emt 0:01:37] Inhibits Rcc3.} Rxe3 {[%emt 0:00:31]} 27. Qxe3 {[%emt 0:00:01]} Qxb4 {[%emt 0:00:03]} 28. Nxe6 {[%emt 0:00:05]} (28. Rd1 $11) 28... Rxc2 $17 {[%emt 0:01:07]} 29. f5 {[%emt 0:00:01]} Qd2 {[%emt 0:01:16]} (29... h6 $17) 30. Qxd2 $11 {[%emt 0:00:02]} Rxd2 {[%emt 0:00:01]} 31. Rb1 {[%emt 0:00:10]} b5 {[%emt 0:00:21]} 32. g4 $1 {[%emt 0:00:19]} Ne4 {[%emt 0:01:04]} 33. Rb3 {[%emt 0:00:12]} (33. Nc7 $11 {remains equal.}) 33... Bxe6 $17 {[%emt 0:01:13]} 34. fxe6 {[%emt 0:00:25][%mdl 4096] Endgame [#] KRB-KRN} Ng5 {[%emt 0:00:05]} (34... Nd6 $1 $17 {And now ...Kf8 would win.} 35. Rc3 Kf8) 35. h4 $11 {[%emt 0:00:37] The position is equal.} Nxf3+ {[%emt 0:01:55]} 36. Rxf3 {[%emt 0:00:01] Intending e7 and mate. KR-KR} Re2 {[%emt 0:00:01] Prevents e7.} 37. Rb3 {[%emt 0:00:01]} Rxe6 {[%emt 0:00:03]} 38. Rxb5 {[%emt 0:00:02]} Re4 {[%emt 0:00:02]} 39. g5 {[%emt 0:00:12]} d4 {[%emt 0:00:54]} 40. h5 {[%emt 0:00:01]} Kf7 {[%emt 0:00:02] White must now prevent ...d3.} 41. Kf2 {[%emt 0:00:18]} Ke6 {[%emt 0:00:08] Threatens to win with ...d3.} 42. h6 {[%emt 0:00:17]} g6 {[%emt 0:00:21]} 43. Rb6+ $1 {[%emt 0:00:02]} Kf5 {[%emt 0:00:17]} 44. Rb7 {[%emt 0:00:13]} Kxg5 {[%emt 0:01:02]} 45. Rxh7 {[%emt 0:00:02]} Kh5 {[%emt 0:00:17]} 46. Rh8 {[%emt 0:00:08]} g5 {[%emt 0:00:05]} 47. h7 {[%emt 0:00:01]} Re7 {[%emt 0:00:13]} 48. Rd8 {[%emt 0:00:04]} Rxh7 {[%emt 0:00:03]} 49. Rxd4 {[%emt 0:00:01] Weighted Error Value: White=0.07 (flawless) /Black=0.09 (flawless)} 1/2-1/2